[Event "Late-Titled-Tuesday-Blitz-July-09-2024"]
[Site "Chess.com"]
[Date "2024.07.09"]
[Round "6"]
[White "IsaqueGoncalvesSanto"]
[Black "santig8"]
[Result "0-1"]
[WhiteElo "1691"]
[BlackElo "2278"]
[TimeControl "180+1"]
[EndTime "15:04:13 PDT"]
[Termination "santig8 won by checkmate"]

1. d4 {[%clk 0:03:00.9]} 1... Nf6 {[%clk 0:02:59.5]} 2. c4 {[%clk 0:03:00.8]}
2... d6 {[%clk 0:02:59]} 3. Nc3 {[%clk 0:02:59.7]} 3... e5 {[%clk 0:02:58.5]} 4.
dxe5 {[%clk 0:02:52.7]} 4... dxe5 {[%clk 0:02:59.4]} 5. Qxd8+ {[%clk 0:02:51.8]}
5... Kxd8 {[%clk 0:02:59.2]} 6. Bg5 {[%clk 0:02:50.8]} 6... Be6 {[%clk
0:02:58.3]} 7. Nd5 {[%clk 0:02:41.1]} 7... Nd7 {[%clk 0:02:55.1]} 8. O-O-O
{[%clk 0:02:29.5]} 8... c6 {[%clk 0:02:54.9]} 9. Nxf6 {[%clk 0:02:28.2]} 9...
gxf6 {[%clk 0:02:55.8]} 10. Bxf6+ {[%clk 0:02:25.5]} 10... Kc7 {[%clk
0:02:50.7]} 11. Bxh8 {[%clk 0:02:25.3]} 11... Bh6+ {[%clk 0:02:50.9]} 12. e3
{[%clk 0:02:20.3]} 12... Rxh8 {[%clk 0:02:51.4]} 13. h3 {[%clk 0:02:07.2]} 13...
Nc5 {[%clk 0:02:48.4]} 14. Nf3 {[%clk 0:02:04.3]} 14... Bg7 {[%clk 0:02:44.2]}
15. Ng5 {[%clk 0:02:01]} 15... h6 {[%clk 0:02:39.2]} 16. Nxe6+ {[%clk
0:01:59.8]} 16... Nxe6 {[%clk 0:02:40.1]} 17. Be2 {[%clk 0:01:54.7]} 17... a5
{[%clk 0:02:38.8]} 18. Bg4 {[%clk 0:01:52]} 18... Nc5 {[%clk 0:02:37.6]} 19. Kc2
{[%clk 0:01:48.8]} 19... e4 {[%clk 0:02:36.1]} 20. Be2 {[%clk 0:01:33.9]} 20...
a4 {[%clk 0:02:34.2]} 21. Rd2 {[%clk 0:01:23.3]} 21... Ra8 {[%clk 0:02:32]} 22.
Rhd1 {[%clk 0:01:22]} 22... Ra6 {[%clk 0:02:25.6]} 23. Rb1 {[%clk 0:00:53.2]}
23... Rb6 {[%clk 0:02:21.4]} 24. b4 {[%clk 0:00:49.5]} 24... axb3+ {[%clk
0:02:16.6]} 25. axb3 {[%clk 0:00:49.3]} 25... Na6 {[%clk 0:02:11.2]} 26. Kd1
{[%clk 0:00:46]} 26... Nb4 {[%clk 0:02:09.4]} 27. Bg4 {[%clk 0:00:29.5]} 27...
Nd3 {[%clk 0:02:03.9]} 28. Bf5 {[%clk 0:00:26.2]} 28... Bc3 {[%clk 0:01:59.1]}
29. Rc2 {[%clk 0:00:25.3]} 29... Be5 {[%clk 0:01:49.7]} 30. Bxe4 {[%clk
0:00:25.1]} 30... Nb4 {[%clk 0:01:48.4]} 31. Rd2 {[%clk 0:00:25.1]} 31... Bc3
{[%clk 0:01:48.3]} 32. Re2 {[%clk 0:00:24]} 32... Ra6 {[%clk 0:01:48]} 33. Bf3
{[%clk 0:00:22.3]} 33... Ra8 {[%clk 0:01:43.2]} 34. Bh5 {[%clk 0:00:22.2]} 34...
Rd8+ {[%clk 0:01:41.5]} 35. Kc1 {[%clk 0:00:20.6]} 35... Rd7 {[%clk 0:01:27.8]}
36. e4 {[%clk 0:00:20.3]} 36... Be5 {[%clk 0:01:23.7]} 37. g3 {[%clk 0:00:20]}
37... Nd3+ {[%clk 0:01:17.5]} 38. Kc2 {[%clk 0:00:19.2]} 38... Nb4+ {[%clk
0:01:17.5]} 39. Kc1 {[%clk 0:00:18.9]} 39... Rd3 {[%clk 0:01:17.5]} 40. f4
{[%clk 0:00:16.8]} 40... Bc3 {[%clk 0:01:16.5]} 41. g4 {[%clk 0:00:15.4]} 41...
Rxh3 {[%clk 0:01:15.8]} 42. Bxf7 {[%clk 0:00:14.5]} 42... Rh1+ {[%clk 0:01:15]}
43. Re1 {[%clk 0:00:06.8]} 43... Rxe1# {[%clk 0:01:13.9]} 0-1

[Event "Late-Titled-Tuesday-Blitz-July-09-2024"]
[Site "Chess.com"]
[Date "2024.07.09"]
[Round "6"]
[White "XDPS"]
[Black "jk13"]
[Result "0-1"]
[WhiteElo "2876"]
[BlackElo "2686"]
[TimeControl "180+1"]
[EndTime "15:04:15 PDT"]
[Termination "jk13 won by resignation"]

1. e4 {[%clk 0:03:00.9]} 1... e5 {[%clk 0:03:00.3]} 2. Nf3 {[%clk 0:02:59.3]}
2... Nc6 {[%clk 0:03:01]} 3. Bb5 {[%clk 0:02:58]} 3... a6 {[%clk 0:03:01.5]} 4.
Ba4 {[%clk 0:02:58.2]} 4... Nf6 {[%clk 0:03:02.2]} 5. O-O {[%clk 0:02:54.7]}
5... b5 {[%clk 0:03:02.9]} 6. Bb3 {[%clk 0:02:54.6]} 6... Bc5 {[%clk 0:03:03.8]}
7. Nc3 {[%clk 0:02:53.8]} 7... O-O {[%clk 0:03:01.5]} 8. d3 {[%clk 0:02:49.7]}
8... h6 {[%clk 0:03:01.4]} 9. a3 {[%clk 0:02:49.2]} 9... d6 {[%clk 0:03:01.2]}
10. Nd5 {[%clk 0:02:49.5]} 10... Rb8 {[%clk 0:02:52.6]} 11. c3 {[%clk
0:02:47.8]} 11... Nxd5 {[%clk 0:02:51.1]} 12. Bxd5 {[%clk 0:02:47.6]} 12... Ne7
{[%clk 0:02:51.8]} 13. Ba2 {[%clk 0:02:48.1]} 13... Ng6 {[%clk 0:02:52.1]} 14.
d4 {[%clk 0:02:47.6]} 14... Bb6 {[%clk 0:02:52.4]} 15. Be3 {[%clk 0:02:42.1]}
15... Qf6 {[%clk 0:02:52.5]} 16. dxe5 {[%clk 0:02:36.9]} 16... dxe5 {[%clk
0:02:52.5]} 17. Bxb6 {[%clk 0:02:35.2]} 17... Rxb6 {[%clk 0:02:53.4]} 18. Qc2
{[%clk 0:01:58.8]} 18... Nf4 {[%clk 0:02:43.9]} 19. Rfe1 {[%clk 0:01:53.9]}
19... Bh3 {[%clk 0:02:15.5]} 20. g3 {[%clk 0:01:13.9]} 20... Ng2 {[%clk
0:02:08.9]} 21. Qe2 {[%clk 0:01:09.2]} 21... Nxe1 {[%clk 0:02:04]} 22. Nxe1
{[%clk 0:01:10.1]} 22... Rd8 {[%clk 0:02:01.9]} 23. Rd1 {[%clk 0:01:01.5]} 23...
Rbd6 {[%clk 0:02:00.5]} 24. Rxd6 {[%clk 0:00:53]} 24... Qxd6 {[%clk 0:01:56.6]}
25. Bxf7+ {[%clk 0:00:30.3]} 25... Kxf7 {[%clk 0:01:46.8]} 26. Qh5+ {[%clk
0:00:30.4]} 26... Qg6 {[%clk 0:01:47.5]} 27. Qxh3 {[%clk 0:00:30.4]} 27... Qxe4
{[%clk 0:01:47.1]} 28. Kf1 {[%clk 0:00:22.5]} 28... Rd2 {[%clk 0:01:34.8]} 29.
Qh5+ {[%clk 0:00:21]} 29... g6 {[%clk 0:01:12.8]} 30. Qf3+ {[%clk 0:00:13.4]}
30... Qxf3 {[%clk 0:01:13.1]} 31. Nxf3 {[%clk 0:00:14.3]} 31... Rxb2 {[%clk
0:01:11.1]} 32. Nxe5+ {[%clk 0:00:14.8]} 32... Kf6 {[%clk 0:01:08.5]} 33. Nd7+
{[%clk 0:00:14.5]} 33... Ke7 {[%clk 0:01:03.3]} 34. Nb8 {[%clk 0:00:14.9]} 34...
Kd6 {[%clk 0:00:58.1]} 35. Nxa6 {[%clk 0:00:15.3]} 35... c5 {[%clk 0:00:58.3]}
36. h4 {[%clk 0:00:14.3]} 36... h5 {[%clk 0:00:58.1]} 37. f3 {[%clk 0:00:13.3]}
37... Ra2 {[%clk 0:00:57.1]} 0-1

[Event "Late-Titled-Tuesday-Blitz-July-09-2024"]
[Site "Chess.com"]
[Date "2024.07.09"]
[Round "6"]
[White "Snowball-03"]
[Black "pirulillo"]
[Result "0-1"]
[WhiteElo "2607"]
[BlackElo "2450"]
[TimeControl "180+1"]
[EndTime "15:04:21 PDT"]
[Termination "pirulillo won by resignation"]

1. e4 {[%clk 0:02:59.7]} 1... c5 {[%clk 0:02:59.9]} 2. Nf3 {[%clk 0:03:00]} 2...
e6 {[%clk 0:02:59.8]} 3. d4 {[%clk 0:03:00.4]} 3... cxd4 {[%clk 0:03:00.7]} 4.
Nxd4 {[%clk 0:03:01.1]} 4... Nf6 {[%clk 0:03:01]} 5. Nc3 {[%clk 0:03:00.2]} 5...
Nc6 {[%clk 0:03:00.4]} 6. Ndb5 {[%clk 0:02:57.9]} 6... d6 {[%clk 0:02:59.9]} 7.
Bf4 {[%clk 0:02:56.4]} 7... e5 {[%clk 0:03:00.5]} 8. Bg5 {[%clk 0:02:56.6]} 8...
a6 {[%clk 0:03:01.1]} 9. Bxf6 {[%clk 0:02:52.9]} 9... gxf6 {[%clk 0:03:00.8]}
10. Na3 {[%clk 0:02:53.1]} 10... b5 {[%clk 0:03:01.3]} 11. Nd5 {[%clk
0:02:52.3]} 11... Bg7 {[%clk 0:03:01]} 12. Bd3 {[%clk 0:02:41.1]} 12... Ne7
{[%clk 0:03:00.7]} 13. c4 {[%clk 0:02:34.5]} 13... Nxd5 {[%clk 0:02:50.4]} 14.
cxd5 {[%clk 0:02:32.3]} 14... f5 {[%clk 0:02:40.6]} 15. exf5 {[%clk 0:02:27.1]}
15... e4 {[%clk 0:02:29]} 16. Qe2 {[%clk 0:02:14.2]} 16... O-O {[%clk
0:02:23.8]} 17. Bxe4 {[%clk 0:02:13.5]} 17... Re8 {[%clk 0:02:20.4]} 18. O-O
{[%clk 0:02:07.9]} 18... Bxf5 {[%clk 0:02:16.9]} 19. f3 {[%clk 0:02:08.2]} 19...
Qf6 {[%clk 0:02:04.6]} 20. Rab1 {[%clk 0:02:00.8]} 20... Qd4+ {[%clk 0:01:59.1]}
21. Kh1 {[%clk 0:01:59.7]} 21... Bxe4 {[%clk 0:01:57.7]} 22. fxe4 {[%clk
0:01:59.7]} 22... Rxe4 {[%clk 0:01:57.5]} 23. Qf3 {[%clk 0:01:59.5]} 23... Rf8
{[%clk 0:01:51.4]} 24. Rbd1 {[%clk 0:01:47.6]} 24... Qe5 {[%clk 0:01:48.2]} 25.
b3 {[%clk 0:01:34.7]} 25... f5 {[%clk 0:01:34.4]} 26. Nc2 {[%clk 0:01:34.4]}
26... f4 {[%clk 0:01:32.3]} 27. Rfe1 {[%clk 0:01:23.5]} 27... Rxe1+ {[%clk
0:01:25.3]} 28. Rxe1 {[%clk 0:01:24.4]} 28... Qb2 {[%clk 0:01:24.4]} 29. Qe4
{[%clk 0:01:18.9]} 29... Qxa2 {[%clk 0:01:20.5]} 30. Nb4 {[%clk 0:01:10.1]}
30... Qxb3 {[%clk 0:01:15.7]} 31. Nc6 {[%clk 0:01:06.7]} 31... f3 {[%clk
0:01:10.2]} 32. Ne7+ {[%clk 0:00:58.7]} 32... Kh8 {[%clk 0:01:09.4]} 33. Nf5
{[%clk 0:00:57.9]} 33... fxg2+ {[%clk 0:00:59.3]} 34. Kxg2 {[%clk 0:00:58.8]}
34... Qc3 {[%clk 0:00:58.1]} 35. Nxd6 {[%clk 0:00:51.7]} 35... Qf6 {[%clk
0:00:42.7]} 36. Qe6 {[%clk 0:00:31]} 36... Qf3+ {[%clk 0:00:37.9]} 37. Kg1
{[%clk 0:00:27.9]} 37... Bd4+ {[%clk 0:00:37.2]} 0-1

[Event "Late-Titled-Tuesday-Blitz-July-09-2024"]
[Site "Chess.com"]
[Date "2024.07.09"]
[Round "6"]
[White "KVAIDAN"]
[Black "ImportedItalianMaple"]
[Result "1-0"]
[WhiteElo "2372"]
[BlackElo "2477"]
[TimeControl "180+1"]
[EndTime "15:04:21 PDT"]
[Termination "KVAIDAN won on time"]

1. f4 {[%clk 0:02:59.9]} 1... Nh6 {[%clk 0:02:23.1]} 2. Nf3 {[%clk 0:02:59.5]}
2... d5 {[%clk 0:02:23.4]} 3. e3 {[%clk 0:02:59.1]} 3... c5 {[%clk 0:02:22.9]}
4. b3 {[%clk 0:02:59.3]} 4... e6 {[%clk 0:02:23.2]} 5. Bb2 {[%clk 0:02:59.1]}
5... Nc6 {[%clk 0:02:23.8]} 6. Bb5 {[%clk 0:02:58]} 6... Bd7 {[%clk 0:02:19.5]}
7. O-O {[%clk 0:02:57.6]} 7... Nf5 {[%clk 0:02:17.6]} 8. Qe1 {[%clk 0:02:55.2]}
8... f6 {[%clk 0:02:15.8]} 9. g4 {[%clk 0:02:54.2]} 9... Nd6 {[%clk 0:02:13.2]}
10. Bxc6 {[%clk 0:02:54.5]} 10... Bxc6 {[%clk 0:02:13.5]} 11. d3 {[%clk
0:02:54.9]} 11... Qc7 {[%clk 0:02:03]} 12. Nbd2 {[%clk 0:02:54.5]} 12... O-O-O
{[%clk 0:02:02.7]} 13. e4 {[%clk 0:02:54.8]} 13... h5 {[%clk 0:02:01.5]} 14. g5
{[%clk 0:02:54.3]} 14... Be7 {[%clk 0:01:39.6]} 15. Kh1 {[%clk 0:02:50.3]} 15...
dxe4 {[%clk 0:01:34.2]} 16. dxe4 {[%clk 0:02:49.9]} 16... Kb8 {[%clk 0:01:24.8]}
17. Kg1 {[%clk 0:02:31.9]} 17... c4 {[%clk 0:01:09.6]} 18. bxc4 {[%clk
0:02:21.7]} 18... f5 {[%clk 0:00:58.5]} 19. Be5 {[%clk 0:02:18.1]} 19... Qb6+
{[%clk 0:00:45.8]} 20. Bd4 {[%clk 0:02:16.9]} 20... Qb4 {[%clk 0:00:36.6]} 21.
Rb1 {[%clk 0:02:13.7]} 21... Qa4 {[%clk 0:00:32.8]} 22. Be5 {[%clk 0:02:07.9]}
22... Ka8 {[%clk 0:00:31.2]} 23. exf5 {[%clk 0:02:01.6]} 23... Nxf5 {[%clk
0:00:30.4]} 24. Nd4 {[%clk 0:02:01.8]} 24... Bc5 {[%clk 0:00:30.3]} 25. c3
{[%clk 0:02:00.3]} 25... Nxd4 {[%clk 0:00:26.2]} 26. cxd4 {[%clk 0:02:00.3]}
26... Rxd4 {[%clk 0:00:26.6]} 27. Nb3 {[%clk 0:01:49.7]} 27... Rxf4+ {[%clk
0:00:15.7]} 28. Nxc5 {[%clk 0:01:49.4]} 28... Rg4+ {[%clk 0:00:16.3]} 29. Bg3
{[%clk 0:01:46]} 29... Qxc4 {[%clk 0:00:15]} 30. Nxe6 {[%clk 0:01:25.7]} 30...
h4 {[%clk 0:00:14.6]} 31. Nc7+ {[%clk 0:01:24.8]} 31... Kb8 {[%clk 0:00:15.3]}
32. Qe5 {[%clk 0:01:08.6]} 32... Qd4+ {[%clk 0:00:07]} 33. Qxd4 {[%clk 0:01:07]}
33... Rxd4 {[%clk 0:00:07.6]} 34. Nb5+ {[%clk 0:01:03.7]} 34... Kc8 {[%clk
0:00:08]} 35. Nxd4 {[%clk 0:01:03.2]} 35... hxg3 {[%clk 0:00:08.9]} 36. Nxc6
{[%clk 0:01:03.2]} 36... bxc6 {[%clk 0:00:07.1]} 37. hxg3 {[%clk 0:01:02.9]} 1-0

[Event "Late-Titled-Tuesday-Blitz-July-09-2024"]
[Site "Chess.com"]
[Date "2024.07.09"]
[Round "6"]
[White "RebecaJimnz"]
[Black "Gyulamiryan-koryun"]
[Result "1-0"]
[WhiteElo "2292"]
[BlackElo "1924"]
[TimeControl "180+1"]
[EndTime "15:04:21 PDT"]
[Termination "RebecaJimnz won on time"]

1. e4 {[%clk 0:03:00.9]} 1... e5 {[%clk 0:02:58.9]} 2. d4 {[%clk 0:03:00.7]}
2... exd4 {[%clk 0:02:57.9]} 3. Qxd4 {[%clk 0:03:01.6]} 3... Nc6 {[%clk
0:02:57.7]} 4. Qe3 {[%clk 0:03:02.2]} 4... Nf6 {[%clk 0:02:57.5]} 5. Nc3 {[%clk
0:03:02.8]} 5... b6 {[%clk 0:02:54.1]} 6. Bd2 {[%clk 0:03:02.7]} 6... Bc5 {[%clk
0:02:53.3]} 7. Qg3 {[%clk 0:02:57.5]} 7... O-O {[%clk 0:02:51.6]} 8. Be2 {[%clk
0:02:53.6]} 8... Nd4 {[%clk 0:02:49.1]} 9. O-O-O {[%clk 0:02:51.2]} 9... Nxe2+
{[%clk 0:02:42.1]} 10. Ngxe2 {[%clk 0:02:52.1]} 10... Bb7 {[%clk 0:02:24.9]} 11.
Bh6 {[%clk 0:02:38.6]} 11... Nh5 {[%clk 0:02:24]} 12. Qg4 {[%clk 0:02:37.7]}
12... g6 {[%clk 0:02:05.9]} 13. Bxf8 {[%clk 0:02:36.5]} 13... Bxf8 {[%clk
0:02:05.1]} 14. Ng3 {[%clk 0:02:29.3]} 14... Bh6+ {[%clk 0:01:57.2]} 15. Kb1
{[%clk 0:02:27.8]} 15... Nf6 {[%clk 0:01:50.3]} 16. Qh4 {[%clk 0:02:11.1]} 16...
Bg7 {[%clk 0:01:45.5]} 17. e5 {[%clk 0:02:09.6]} 17... Ne8 {[%clk 0:01:33.9]}
18. Qxd8 {[%clk 0:01:47.4]} 18... Rxd8 {[%clk 0:01:32.8]} 19. f4 {[%clk
0:01:47.4]} 19... Bxg2 {[%clk 0:01:31.5]} 20. Rhg1 {[%clk 0:01:42]} 20... Bh3
{[%clk 0:01:30.9]} 21. Nge4 {[%clk 0:01:39.3]} 21... Bf5 {[%clk 0:01:22]} 22.
Ng5 {[%clk 0:01:30.7]} 22... h6 {[%clk 0:01:19.7]} 23. Nf3 {[%clk 0:01:28.8]}
23... c6 {[%clk 0:01:11.9]} 24. Nd4 {[%clk 0:01:25]} 24... d5 {[%clk 0:00:46]}
25. Nxc6 {[%clk 0:01:19.6]} 25... Rd7 {[%clk 0:00:43.2]} 26. Nxd5 {[%clk
0:01:18.4]} 26... Be4 {[%clk 0:00:41.4]} 27. Nde7+ {[%clk 0:01:18.1]} 27... Rxe7
{[%clk 0:00:35.3]} 28. Nxe7+ {[%clk 0:01:19]} 28... Kh7 {[%clk 0:00:35.3]} 29.
Rd7 {[%clk 0:01:13.6]} 29... h5 {[%clk 0:00:13.5]} 30. Nc8 {[%clk 0:01:13.3]}
30... Kg8 {[%clk 0:00:12.3]} 31. Rgd1 {[%clk 0:01:07.2]} 31... Bh6 {[%clk
0:00:09.2]} 32. Rd8 {[%clk 0:01:01.6]} 32... Kf8 {[%clk 0:00:08.3]} 33. Nd6
{[%clk 0:01:01.6]} 33... Bxf4 {[%clk 0:00:04.4]} 34. Rxe8+ {[%clk 0:01:01.7]}
34... Kg7 {[%clk 0:00:04.5]} 35. Nxe4 {[%clk 0:01:02.3]} 35... g5 {[%clk
0:00:02.4]} 36. Nf6 {[%clk 0:00:59.7]} 1-0

[Event "Late-Titled-Tuesday-Blitz-July-09-2024"]
[Site "Chess.com"]
[Date "2024.07.09"]
[Round "6"]
[White "Nf3c5"]
[Black "Burgsvik"]
[Result "0-1"]
[WhiteElo "2626"]
[BlackElo "2273"]
[TimeControl "180+1"]
[EndTime "15:04:30 PDT"]
[Termination "Burgsvik won by resignation"]

1. e4 {[%clk 0:03:00.9]} 1... c5 {[%clk 0:03:00.9]} 2. Nc3 {[%clk 0:02:57.9]}
2... Nc6 {[%clk 0:03:01.8]} 3. Bb5 {[%clk 0:02:57.1]} 3... e6 {[%clk 0:03:01.3]}
4. Bxc6 {[%clk 0:02:56.8]} 4... bxc6 {[%clk 0:03:00.3]} 5. d3 {[%clk 0:02:57.7]}
5... Ne7 {[%clk 0:03:00.3]} 6. f4 {[%clk 0:02:58.2]} 6... Ng6 {[%clk 0:03:00.3]}
7. Nf3 {[%clk 0:02:58.7]} 7... f6 {[%clk 0:03:00.1]} 8. O-O {[%clk 0:02:58.9]}
8... Be7 {[%clk 0:02:59.7]} 9. Kh1 {[%clk 0:02:51.7]} 9... O-O {[%clk
0:02:59.3]} 10. Qe1 {[%clk 0:02:45]} 10... Rb8 {[%clk 0:02:58.8]} 11. b3 {[%clk
0:02:43.7]} 11... d5 {[%clk 0:02:57.5]} 12. Bd2 {[%clk 0:02:35.1]} 12... Qc7
{[%clk 0:02:56.5]} 13. g3 {[%clk 0:02:19.6]} 13... Bb7 {[%clk 0:02:46.8]} 14.
Na4 {[%clk 0:02:14.7]} 14... c4 {[%clk 0:02:45]} 15. Ba5 {[%clk 0:02:01.1]}
15... Qd7 {[%clk 0:02:41.5]} 16. e5 {[%clk 0:01:58.2]} 16... cxd3 {[%clk
0:02:40.6]} 17. cxd3 {[%clk 0:01:57.6]} 17... c5 {[%clk 0:02:39.9]} 18. d4
{[%clk 0:01:57.9]} 18... cxd4 {[%clk 0:02:36.4]} 19. Nxd4 {[%clk 0:01:57.4]}
19... fxe5 {[%clk 0:02:36.4]} 20. fxe5 {[%clk 0:01:51]} 20... Rxf1+ {[%clk
0:02:34.9]} 21. Qxf1 {[%clk 0:01:51.9]} 21... Nxe5 {[%clk 0:02:34.5]} 22. Qe2
{[%clk 0:01:52.2]} 22... Bf6 {[%clk 0:02:31.9]} 23. Re1 {[%clk 0:01:50.2]} 23...
Re8 {[%clk 0:02:17.7]} 24. Nc5 {[%clk 0:01:49]} 24... Qc8 {[%clk 0:02:14]} 25.
Qb5 {[%clk 0:01:14.8]} 25... Ba8 {[%clk 0:02:11.1]} 26. b4 {[%clk 0:01:15.2]}
26... Nc6 {[%clk 0:01:51.2]} 27. Ndxe6 {[%clk 0:01:08.5]} 27... d4 {[%clk
0:01:42]} 28. Kg1 {[%clk 0:01:04.7]} 28... Nxa5 {[%clk 0:01:38]} 29. bxa5 {[%clk
0:00:55.7]} 29... Bd5 {[%clk 0:01:37.1]} 30. a6 {[%clk 0:00:26]} 30... Bxe6
{[%clk 0:01:34.1]} 31. Nxe6 {[%clk 0:00:22.9]} 31... Rxe6 {[%clk 0:01:33.6]} 32.
Qd5 {[%clk 0:00:13.8]} 32... Kf7 {[%clk 0:01:32.1]} 33. Rb1 {[%clk 0:00:12]}
33... Qc6 {[%clk 0:01:30.2]} 34. Rb7+ {[%clk 0:00:12.4]} 34... Kg6 {[%clk
0:01:29.5]} 35. Qxc6 {[%clk 0:00:08.7]} 35... Rxc6 {[%clk 0:01:29]} 36. Rxa7
{[%clk 0:00:09.6]} 36... d3 {[%clk 0:01:28.6]} 37. Rd7 {[%clk 0:00:09.3]} 37...
Rxa6 {[%clk 0:01:28.5]} 38. Rxd3 {[%clk 0:00:10]} 38... Rxa2 {[%clk 0:01:29]}
39. h3 {[%clk 0:00:09.6]} 39... h5 {[%clk 0:01:27.9]} 40. Rf3 {[%clk 0:00:09]}
40... h4 {[%clk 0:01:27.8]} 41. gxh4 {[%clk 0:00:08.9]} 41... Bxh4 {[%clk
0:01:27.8]} 42. Rd3 {[%clk 0:00:09.8]} 42... Kh5 {[%clk 0:01:26.6]} 43. Kh1
{[%clk 0:00:09.9]} 43... g5 {[%clk 0:01:24.9]} 44. Rd4 {[%clk 0:00:10.3]} 44...
Bg3 {[%clk 0:01:20]} 45. Rg4 {[%clk 0:00:09]} 45... Bf4 {[%clk 0:01:18.2]} 46.
Rg2 {[%clk 0:00:04.3]} 46... Rxg2 {[%clk 0:01:16.1]} 47. Kxg2 {[%clk 0:00:05.2]}
47... Kh4 {[%clk 0:01:16.4]} 48. Kg1 {[%clk 0:00:04.3]} 48... Kxh3 {[%clk
0:01:16.7]} 49. Kh1 {[%clk 0:00:05.2]} 49... g4 {[%clk 0:01:16.6]} 50. Kg1
{[%clk 0:00:05.8]} 50... g3 {[%clk 0:01:16.5]} 51. Kh1 {[%clk 0:00:05.2]} 51...
g2+ {[%clk 0:01:16.3]} 0-1

[Event "Late-Titled-Tuesday-Blitz-July-09-2024"]
[Site "Chess.com"]
[Date "2024.07.09"]
[Round "6"]
[White "BaylavChess"]
[Black "Zurability"]
[Result "0-1"]
[WhiteElo "2403"]
[BlackElo "2651"]
[TimeControl "180+1"]
[EndTime "15:04:31 PDT"]
[Termination "Zurability won by resignation"]

1. e4 {[%clk 0:02:55.1]} 1... e5 {[%clk 0:02:57.2]} 2. Nc3 {[%clk 0:02:52.8]}
2... Nf6 {[%clk 0:02:56.6]} 3. d4 {[%clk 0:02:51.7]} 3... exd4 {[%clk
0:02:56.4]} 4. Qxd4 {[%clk 0:02:52.6]} 4... Nc6 {[%clk 0:02:56.9]} 5. Qd3 {[%clk
0:02:53]} 5... d5 {[%clk 0:02:57]} 6. Bf4 {[%clk 0:02:50.5]} 6... Bb4 {[%clk
0:02:31.7]} 7. O-O-O {[%clk 0:02:30.5]} 7... dxe4 {[%clk 0:02:29.2]} 8. Nxe4
{[%clk 0:02:05.2]} 8... Nxe4 {[%clk 0:02:12.2]} 9. Qxe4+ {[%clk 0:02:03.4]} 9...
Qe7 {[%clk 0:02:12.3]} 10. Qxe7+ {[%clk 0:01:54.3]} 10... Bxe7 {[%clk
0:02:13.2]} 11. Bxc7 {[%clk 0:01:53.8]} 11... Bf5 {[%clk 0:02:13.6]} 12. a3
{[%clk 0:01:35.1]} 12... Rc8 {[%clk 0:02:11]} 13. Bf4 {[%clk 0:01:34.8]} 13...
Nb4 {[%clk 0:01:38.5]} 14. c3 {[%clk 0:01:05.8]} 14... Na2+ {[%clk 0:01:25.1]}
15. Kd2 {[%clk 0:01:06]} 15... O-O {[%clk 0:01:25.9]} 16. Bd3 {[%clk 0:00:55.6]}
16... Rfd8 {[%clk 0:01:18.1]} 17. Ke2 {[%clk 0:00:55.9]} 17... Be6 {[%clk
0:01:08.1]} 18. Nf3 {[%clk 0:00:54.6]} 18... Bxa3 {[%clk 0:01:03.3]} 19. bxa3
{[%clk 0:00:50.7]} 19... Nxc3+ {[%clk 0:01:03.4]} 20. Ke3 {[%clk 0:00:23.4]}
20... Nxd1+ {[%clk 0:00:38.4]} 21. Rxd1 {[%clk 0:00:24.3]} 21... Rc3 {[%clk
0:00:38.1]} 22. Nd4 {[%clk 0:00:17.3]} 22... Bc4 {[%clk 0:00:28.5]} 23. a4
{[%clk 0:00:13.9]} 23... Re8+ {[%clk 0:00:23]} 24. Be5 {[%clk 0:00:12.4]} 24...
Rxe5+ {[%clk 0:00:20.9]} 25. Kf4 {[%clk 0:00:13]} 25... Rd5 {[%clk 0:00:20]} 26.
Re1 {[%clk 0:00:09.4]} 26... g5+ {[%clk 0:00:18.6]} 27. Kg3 {[%clk 0:00:07.9]}
27... Rxd4 {[%clk 0:00:17.9]} 0-1

[Event "Late-Titled-Tuesday-Blitz-July-09-2024"]
[Site "Chess.com"]
[Date "2024.07.09"]
[Round "6"]
[White "c63_amg"]
[Black "Andreikka"]
[Result "0-1"]
[WhiteElo "2780"]
[BlackElo "3007"]
[TimeControl "180+1"]
[EndTime "15:04:32 PDT"]
[Termination "Andreikka won by resignation"]

1. e4 {[%clk 0:03:00.9]} 1... Nc6 {[%clk 0:02:08.5]} 2. Nf3 {[%clk 0:03:00]}
2... Nf6 {[%clk 0:02:08.8]} 3. e5 {[%clk 0:02:51.9]} 3... Ng8 {[%clk 0:02:09.4]}
4. d4 {[%clk 0:02:52.3]} 4... d6 {[%clk 0:02:10.2]} 5. Bb5 {[%clk 0:02:41.6]}
5... a6 {[%clk 0:02:06.7]} 6. Bxc6+ {[%clk 0:02:42.1]} 6... bxc6 {[%clk
0:02:07.6]} 7. O-O {[%clk 0:02:42.5]} 7... g6 {[%clk 0:02:07.3]} 8. h3 {[%clk
0:02:40.8]} 8... Bg7 {[%clk 0:02:07.7]} 9. Nc3 {[%clk 0:02:37]} 9... Nh6 {[%clk
0:02:08.3]} 10. Bf4 {[%clk 0:02:32.4]} 10... O-O {[%clk 0:01:54.7]} 11. Qd2
{[%clk 0:02:17.7]} 11... Nf5 {[%clk 0:01:54.2]} 12. g4 {[%clk 0:02:01.9]} 12...
dxe5 {[%clk 0:01:42.9]} 13. dxe5 {[%clk 0:01:53.2]} 13... Qxd2 {[%clk
0:01:41.8]} 14. Bxd2 {[%clk 0:01:54.1]} 14... Nh6 {[%clk 0:01:41.8]} 15. Rfe1
{[%clk 0:01:51.2]} 15... f5 {[%clk 0:01:37.6]} 16. exf6 {[%clk 0:01:46]} 16...
exf6 {[%clk 0:01:37.2]} 17. Re7 {[%clk 0:01:31.4]} 17... f5 {[%clk 0:01:33.7]}
18. g5 {[%clk 0:01:28.4]} 18... Nf7 {[%clk 0:01:33.5]} 19. Rxc7 {[%clk
0:01:28.2]} 19... f4 {[%clk 0:01:29.5]} 20. Re1 {[%clk 0:01:14.4]} 20... Bxh3
{[%clk 0:01:12.1]} 21. Ree7 {[%clk 0:01:15]} 21... Bf5 {[%clk 0:01:04.7]} 22.
Bxf4 {[%clk 0:01:08.9]} 22... Rae8 {[%clk 0:01:03.9]} 23. Rxe8 {[%clk
0:00:56.8]} 23... Rxe8 {[%clk 0:01:03.9]} 24. Rxc6 {[%clk 0:00:57.7]} 24... a5
{[%clk 0:01:01.7]} 25. Be3 {[%clk 0:00:34.8]} 25... Bxc2 {[%clk 0:00:59.3]} 26.
Nd4 {[%clk 0:00:32.7]} 26... Bxd4 {[%clk 0:00:55.8]} 27. Bxd4 {[%clk 0:00:32.9]}
27... Nxg5 {[%clk 0:00:56.5]} 28. Be3 {[%clk 0:00:28.6]} 28... Nf3+ {[%clk
0:00:55]} 29. Kg2 {[%clk 0:00:29.1]} 29... Ne5 {[%clk 0:00:55.5]} 30. Rc5 {[%clk
0:00:29.2]} 30... a4 {[%clk 0:00:52.1]} 31. Nd5 {[%clk 0:00:27.1]} 31... Be4+
{[%clk 0:00:51.6]} 32. Kg3 {[%clk 0:00:27.3]} 32... Nd7 {[%clk 0:00:50.6]} 33.
Rc7 {[%clk 0:00:23.4]} 33... Bxd5 {[%clk 0:00:45.4]} 34. Rxd7 {[%clk 0:00:24]}
34... Bxa2 {[%clk 0:00:45.7]} 35. Bd4 {[%clk 0:00:21.5]} 35... Re4 {[%clk
0:00:37.6]} 36. Re7 {[%clk 0:00:17.7]} 36... Rxe7 {[%clk 0:00:36.3]} 0-1